Cogmind - Beta 16.1 @@@ ROGUE MODE // 2026.04.19 @ 00:34:41 Player: Thqwib-Linux Result: Destroyed by MAIN.C with Improved Heavy Machine Gun Performance ------------- Evolutions (9) 4500 Regions Visited (25) 5000 Robots Destroyed (378) 1890 Value Destroyed (19053) 19053 Prototype IDs (91) 1820 Alien Tech Used (3) 600 Bonus (30961) 30961 TOTAL SCORE: 63824 Bonus ------- High Alert Combat Kills 5292 Follower Combat Kills 1629 Entered Garrisons 200 Network Hubs Disabled 200 Aligned with FarCom 300 Acquired ECA 300 Met Warlord at Base 500 MAIN.C Attacked Warlord 500 Warlord Defense Kills 612 Built Enhanced Grunts 300 A7 Reached Mainframe 300 Met R17 at Cetus 500 Used Core Reset Matrix 3000 Met R17 at Research 2000 Met Warlord at Research 2000 Invited to Help at Command 2000 Scanned by Researcher 500 Destroyed MAIN.C Guards 500 Met MAIN.C 5000 Destroyed MAIN.C Shell 5000 Met Warlord at Command 2000 Friendly Fire -1672 Cogmind --------- Core Integrity 0/1600 Matter 300/300 Energy 100/100 System Corruption 6% Temperature Cool (0) Movement Core (50) Location -1/Command Parts ------- > --- POWER (2) -------- (None) > --- PROPULSION (7) --- (None) > --- UTILITY (12) ----- Advanced Heat Sink Advanced Targeting Computer Experimental Core Analyzer Armor Integrity Analyzer > --- WEAPON (4) ------- (None) > --- INVENTORY (5) ---- Hybrid Antimatter Reactor Light Quantum Reactor Advanced Point Defense System Long-range Tractor Beam Advanced Remote Datajack Peak State ------------ > --- POWER ------------ Hybrid Antimatter Reactor Improved Quantum Reactor > --- PROPULSION ------- Biometal Leg Centrium Leg Heavy Shield Leg Myomer Exoskeleton > --- UTILITY ---------- Experimental Power Amplifier Advanced Cryofiber Web Experimental Cooling System High-capacity Storage Unit Advanced Signal Interpreter Experimental Core Analyzer Quantum Capacitor Advanced Transmission Jammer Centrium Light Armor Plating Advanced Force Field Improved Hacking Suite > --- WEAPON ----------- Advanced Variable Charge Gun Heavy Quantum Rifle Improved Potential Cannon > --- INVENTORY -------- Particle Reactor Improved Quantum Reactor Biometal Leg Advanced Cryofiber Web Advanced Energy Well Advanced Sensor Array Armor Integrity Analyzer Improved Weapon Shielding Phase Redirector Advanced Point Defense System Advanced Point Defense System Core Reset Matrix Vortex Shotgun Vortex Shotgun Improved Potential Cannon Advanced Remote Datajack [Rating: 235] Favorites ----------- Power Hybrid Antimatter Reactor Engine Improved Deuterium Engine Power Core Light Nuclear Core Reactor Hybrid Antimatter Reactor Propulsion Aerolev Unit Treads Experimental Biometal Medium Treads Leg Biometal Leg Wheel Compact Wheel Hover Unit Aerolev Unit Utility Experimental Core Analyzer Device Experimental Cooling System Storage Large Storage Unit Processor Experimental Core Analyzer Hackware Improved Hacking Suite Protection Heavy Armor Plating Artifact Phase Redirector Weapon XL Autogun Subcomponent Energy Gun Heavy Quantum Rifle Energy Cannon Improved Potential Cannon Ballistic Gun XL Autogun Subcomponent Ballistic Cannon Hardcell Cannon Launcher Neutron Missile Launcher Special Weapon Improved Plasma Cutter Slashing Weapon Particle Cleaver Build | -11 -10 -10 -10 -9 -8 -7 -7 -7 -6 -6 -6 -6 -6 -5 -5 -5 -5 -4 -4 -3 -3 -2 -2 -1 -1 ------- Run | Yrd Mat Min Exi Min Mat Fac Gar Fac Fac Ext Cet Arc Hub Fac Upp Upp War Pro Fac Res Tes Res Qua Acc Com Slots Evolved 18 | . . . . . 4 2 . . 2 . . . . 2 . . . . 2 2 . 2 . 2 . Power 1 | . . . . . . . . . . . . . . . . . . . 1 . . . . . . Propulsion 5 | . . . . . 2 1 . . . . . . . 1 . . . . 1 . . . . . . Utility 10 | . . . . . 1 . . . 2 . . . . 1 . . . . . 2 . 2 . 2 . Weapon 2 | . . . . . 1 1 . . . . . . . . . . . . . . . . . . . Parts Attached 264 | 3 6 4 2 1 27 7 3 6 4 3 3 2 . 16 1 . 15 . 8 3 34 30 3 34 49 Power 34 | . 1 1 . . 4 . 3 1 . . . 1 . 2 1 . 3 . 1 . 3 7 . . 6 Engine 6 | . . 1 . . 2 . 1 1 . . . . . 1 . . . . . . . . . . . Core 8 | . 1 . . . 2 . 2 . . . . 1 . 1 1 . . . . . . . . . . Reactor 20 | . . . . . . . . . . . . . . . . . 3 . 1 . 3 7 . . 6 Propulsion 82 | 2 1 . 2 1 9 4 . 1 . . . . . 3 . . 6 . 2 1 9 11 1 19 10 Treads 10 | 1 . . 1 1 2 . . . . . . . . . . . . . . . . . . . 5 Leg 47 | . . . . . 3 . . . . . . . . . . . . . . . 8 11 1 19 5 Wheel 6 | 1 1 . 1 . 3 . . . . . . . . . . . . . . . . . . . . Hover 19 | . . . . . 1 4 . 1 . . . . . 3 . . 6 . 2 1 1 . . . . Flight . | . . . . . . . . . . . . . . . . . . . . . . . . . . Utility 95 | . 3 1 . . 7 2 . 4 4 3 2 1 . 5 . . 4 . 4 2 10 8 2 8 25 Device 44 | . 1 . . . 3 . . . 1 . 1 . . 2 . . 3 . 3 1 4 5 1 2 17 Storage 12 | . 2 . . . 1 . . 1 1 1 . . . 2 . . . . . . 2 . 1 . 1 Processor 13 | . . . . . . 1 . 1 1 1 . . . 1 . . 1 . 1 . . . . 3 3 Hackware 5 | . . . . . . 1 . . . 1 . 1 . . . . . . . . 1 . . 1 . Protection 20 | . . 1 . . 3 . . 2 1 . 1 . . . . . . . . 1 3 3 . 1 4 Artifact 1 | . . . . . . . . . . . . . . . . . . . . . . . . 1 . Weapon 53 | 1 1 2 . . 7 1 . . . . 1 . . 6 . . 2 . 1 . 12 4 . 7 8 Energy Gun 17 | 1 1 . . . 3 . . . . . 1 . . . . . 1 . . . 5 1 . . 4 Energy Cannon 2 | . . . . . . . . . . . . . . . . . . . . . . 1 . 1 . Ballistic Gun 26 | . . 2 . . 3 1 . . . . . . . 4 . . . . . . 5 1 . 6 4 Ballistic Cannon 1 | . . . . . . . . . . . . . . . . . . . 1 . . . . . . Launcher 2 | . . . . . 1 . . . . . . . . . . . . . . . 1 . . . . Special Weapon 3 | . . . . . . . . . . . . . . 1 . . 1 . . . 1 . . . . Impact Weapon . | . . . . . . . . . . . . . . . . . . . . . . . . . . Slashing Weapon 2 | . . . . . . . . . . . . . . 1 . . . . . . . 1 . . . Piercing Weapon . | . . . . . . . . . . . . . . . . . . . . . . . . . . Special Melee Weapon . | . . . . . . . . . . . . . . . . . . . . . . . . . . Unidentified Prototypes 36 | . . . . . 1 . . 1 . . 2 . . 2 . . 6 . 1 . 9 7 2 1 4 Corrupted Parts 3 | . . . . . . . . . . . . . . . . . 1 . . . . . . . 2 System Corruption 8 | . . . . . . . . . . . . . . . . . 3 . . . . . . . 5 Parts Lost 67 | . 1 . . . 6 . . . . . . . . 2 . 1 1 . . 1 7 . 1 12 35 Power 9 | . . . . . 2 . . . . . . . . 1 . 1 . . . . . . . 1 4 Propulsion 15 | . 1 . . . 2 . . . . . . . . 1 . . 1 . . 1 . . . 2 7 Utility 24 | . . . . . 1 . . . . . . . . . . . . . . . 3 . . 6 14 Weapon 19 | . . . . . 1 . . . . . . . . . . . . . . . 4 . 1 3 10 Highest Loss Streak 18 | . 1 . . . 2 . . . . . . . . 2 . 1 1 . . 1 2 . 1 3 18 To Critical Strikes 1 | . . . . . . . . . . . . . . . . . . . . . . . . . 1 Average Backups 12 | 7 10 13 12 12 11 6 5 6 7 9 10 10 10 9 9 9 8 9 9 9 13 14 15 17 15 Power 1 | 1 1 1 1 1 . . . . 1 1 1 1 1 . . . . 1 . . 1 1 1 1 2 Propulsion 1 | 5 3 6 5 4 5 1 1 1 1 1 1 1 1 . . . . 1 . . 1 1 . 1 . Utility 5 | . 2 4 3 3 3 2 2 3 3 5 6 6 6 5 6 7 4 3 4 4 5 6 8 6 6 Weapon 2 | 1 2 1 1 2 1 1 1 1 1 1 1 1 1 . 1 1 2 3 3 3 3 4 3 5 3 Tool/Special . | . . . . . . . . . . . . . . . . . . . . . . . . . . Unused Backups 36 | . 7 1 1 . 6 . . 1 . 2 . 1 . 2 1 . 3 . 1 1 2 2 . 2 3 Power 8 | . 2 . . . . . . . . . . . . . . . . . . 1 . 1 . 2 2 Propulsion 8 | . 2 . . . 5 . . . . . . . . . . . . . . . . 1 . . . Utility 17 | . 2 1 1 . 1 . . 1 . 2 . 1 . 2 . . 3 . 1 . 1 . . . 1 Weapon 2 | . 1 . . . . . . . . . . . . . . . . . . . 1 . . . . Tool/Special 1 | . . . . . . . . . . . . . . . 1 . . . . . . . . . . Average Slot Usage (%) 86 | . 98 100 100 100 93 75 76 76 79 80 79 80 80 82 94 89 92 100 90 88 81 79 73 91 90 Engine 2 | . 1 10 14 14 2 7 5 7 6 6 6 3 . . 4 . 2 . . . . . . . . Core 1 | . 12 3 . . 6 . 1 . . . . 2 6 4 . 1 . . . . . . . . . Reactor 3 | . . . . . . . . . . . . . . . . . 1 5 5 4 4 8 8 8 7 Treads 4 | . 13 14 14 17 17 . . . . . . . . . . . . . . . . . . . 9 Leg 8 | . . . . . 10 . . . . . . . . . . . . . . . 16 17 15 24 16 Wheel 1 | . 13 14 14 10 5 1 . . . . . . . . . . . . . . . . . . . Hover 12 | . . . . . . 34 38 38 32 33 33 33 33 32 29 29 30 35 33 26 4 . . . . Device 11 | . 12 3 . . 7 7 7 2 6 5 6 6 6 4 5 3 7 11 8 16 12 16 15 21 18 Storage 5 | . 14 14 14 14 9 1 . 4 6 6 6 6 6 5 5 5 5 5 5 4 4 4 4 4 3 Processor 10 | . . . . . . . 7 7 12 13 13 13 13 16 17 17 13 11 10 9 9 8 8 16 16 Hackware 2 | . . . . . . 4 . . . 4 6 6 6 5 5 5 5 5 5 4 4 4 4 . . Protection 3 | . . 10 14 14 7 6 7 7 6 1 . . . . . 1 . . . 2 2 4 4 1 2 Energy Gun 3 | . 14 3 . . 7 . . . . . . . . . . . . . . . 6 5 4 4 3 Ballistic Gun 11 | . 14 24 28 28 17 8 6 7 6 6 5 6 6 7 23 22 20 22 20 19 9 2 . 8 8 Peak Build Rating 235 | 6 11 14 17 18 32 71 74 74 85 85 85 85 89 99 83 83 116 110 132 141 189 209 217 235 207 Average Rating 121 | 5 10 12 15 17 27 66 72 73 84 84 77 82 88 91 81 78 89 109 123 137 169 200 209 193 180 On Entrance 86 | 6 6 11 13 17 18 28 71 74 74 85 85 80 84 89 81 83 56 116 110 130 135 177 209 210 194 Avg Prop Armor Cover (%) 6 | . 12 10 7 10 8 . . . . . . . . . . 4 4 5 . . . . . . 4 Naked Turns . | . . . . . . . . . . . . . . . . . . . . . . . . . . Heaviest Build 195 | 14 31 31 30 30 41 27 34 37 40 40 42 40 40 46 37 43 49 40 68 69 114 121 111 152 195 Greatest Support 208 | 10 16 20 20 40 60 40 40 44 40 44 40 40 40 55 43 47 85 85 96 84 206 205 208 208 200 Greatest Overweight (x) 7 | 1 3 1 2 2 2 . . . . . 1 . . . . . . . 1 . . . . 1 7 Average Overweight (x) . | 1 1 1 1 1 . . . . . . . . . . . . . . . . . . . . . Largest Inventory Capacity 25 | 8 20 15 15 15 15 15 5 8 10 10 10 10 10 10 10 10 10 10 10 10 15 15 20 20 25 Average Capacity 14 | 8 13 15 15 15 15 6 5 6 8 10 10 10 10 10 10 10 10 10 10 10 14 15 17 20 21 Most Carried 20 | 8 15 15 15 15 15 15 5 8 8 10 10 10 10 10 10 10 10 10 10 10 15 15 19 20 20 Average Carried 12 | 6 10 13 14 15 14 5 4 6 7 9 10 10 10 9 9 9 9 10 9 9 13 14 15 18 16 Final Capacity 20 | 8 15 15 15 15 15 5 5 8 10 10 10 10 10 10 10 10 10 10 10 10 15 15 20 20 5 Final Carried 20 | 4 15 14 15 15 15 5 5 8 8 10 10 10 10 10 10 8 10 10 10 10 15 15 18 20 5 Class Distribution -------------------- 33% | Scavenger-Gunner 13% | Scavenger-Skirmisher 12% | Mutant 11% | Gunner 10% | Skirmisher 4% | Scavenger-Tank 3% | Scout 3% | Commander-Gunner Dominant Class ---------------- Mutant | -10/Materials Mutant | -10/Mines Mutant | -10/Exiles Mutant | -9/Mines Scavenger-Skirmisher | -8/Materials Tank | -7/Factory Gunner | -7/Garrison Gunner | -7/Factory Skirmisher | -6/Factory Skirmisher | -6/Extension Commander-Gunner | -6/Cetus Commander-Gunner | -6/Archives Commander-Skirmisher | -6/Hub_04(d) Commander-Scout | -5/Factory Scout | -5/Upper Caves Scout | -5/Upper Caves Scavenger-Gunner | -5/Warlord Scavenger-Gunner | -4/Proximity Caves Scavenger-Gunner | -4/Factory Scavenger-Skirmisher | -3/Research Scavenger-Tank | -3/Testing Scavenger-Skirmisher | -2/Research Scavenger-Gunner | -2/Quarantine Scavenger-Gunner | -1/Access Scavenger-Gunner | -1/Command Resources | -11 -10 -10 -10 -9 -8 -7 -7 -7 -6 -6 -6 -6 -6 -5 -5 -5 -5 -4 -4 -3 -3 -2 -2 -1 -1 ----------- Run | Yrd Mat Min Exi Min Mat Fac Gar Fac Fac Ext Cet Arc Hub Fac Upp Upp War Pro Fac Res Tes Res Qua Acc Com Matter Collected 13730 | 200 274 72 . 20 671 . 1391 417 260 1230 514 193 97 986 300 110 559 62 269 392 1865 484 130 1135 2099 Remotely 2128 | . . . . . 169 . . . . . . . . 163 133 . . . 92 . 232 . . . 1339 Salvage Created 19440 | . 533 128 . . 1317 . 1333 474 409 2056 274 148 58 1257 131 311 243 . 410 58 2534 126 1020 3843 2777 Parts 909 | . 35 6 . . 76 . 64 26 20 85 12 8 5 60 9 6 10 . 22 6 171 6 29 149 104 Haulers Intercepted 10 | . 1 . . . 2 . . . . 2 . . . 3 . . . . . . 2 . . . . Recyclers Shooed 10 | . 1 . . . 1 . . . . 1 . . . 1 . . . . . . . . . 3 3 Parts Field Recycled . | . . . . . . . . . . . . . . . . . . . . . . . . . . Retrieved Matter . | . . . . . . . . . . . . . . . . . . . . . . . . . . Parts Self-Destructed 3 | . . . . . . . . . . . . . . . 3 . . . . . . . . . . Prevented . | . . . . . . . . . . . . . . . . . . . . . . . . . . Parts Restored . | . . . . . . . . . . . . . . . . . . . . . . . . . . Kills | -11 -10 -10 -10 -9 -8 -7 -7 -7 -6 -6 -6 -6 -6 -5 -5 -5 -5 -4 -4 -3 -3 -2 -2 -1 -1 ------- Run | Yrd Mat Min Exi Min Mat Fac Gar Fac Fac Ext Cet Arc Hub Fac Upp Upp War Pro Fac Res Tes Res Qua Acc Com Combat Hostiles Destroyed 270 | . 12 2 . . 30 . 32 6 2 22 3 1 1 9 . . 7 . 7 1 32 1 14 51 37 Melee 1 | . . . . . . . . . . . . . . . . . . . . . . . . . 1 Guns 224 | . 12 2 . . 23 . 30 6 2 22 3 1 1 9 . . 7 . 7 1 27 1 3 41 26 Cannons 11 | . . . . . . . . . . . . . . . . . . . . . . . 2 5 4 AOE 30 | . . . . . 7 . 2 . . . . . . . . . . . . . 5 . 8 5 3 Classes Destroyed 24 | . 7 1 . . 2 . 3 . . 2 . . . . 1 . 2 . 1 . 1 . 2 1 1 Worker 35 | . 1 . . . 4 . . 1 . 1 . . . 5 . . . . . . 5 1 3 7 7 Builder 13 | . . 1 . . . . . 2 1 2 . . . 2 . . . . . . 2 . 1 2 . Tunneler 2 | . . . . . . . . . . 1 . . . . . . . . . . . . . 1 . Hauler 10 | . 1 . . . 2 . . . . 2 . . . 3 . . . . . . 2 . . . . Recycler 16 | . 2 . . . 2 . . 1 2 3 . . . 1 . . . . 1 . . . 1 1 2 Mechanic 1 | . . . . . . . . . . . . . . . . . . . . . . . 1 . . Operator 7 | . 2 . . . . . . 1 1 . . 2 . 1 . . . . . . . . . . . Watcher 17 | . 1 . . . . . . 2 2 1 2 . . 3 . . . . . . 2 . . 1 3 Swarmer 49 | . 6 . . . 8 . 13 3 2 3 . . . 2 . . 3 . . . . . . 8 1 Cutter 5 | . . . . . . . . . . . . . . . . . . . 4 . . . . . 1 Saboteur 2 | . . . . . . . . . . . . . . . . . 1 . . . . . . . 1 Grunt 93 | . 6 2 . . 18 . 12 . . 11 . . . 2 . . 2 . . . 3 1 6 20 10 Brawler 6 | . . . . . . . 1 1 . 2 . . . . . . . . . . . . 1 . 1 Duelist 3 | . . . . . . . 2 . . . . . . . . . . . . . . . . . 1 Protector 4 | . . . . . . . . . . . . . . . . . . . . . . . . 1 3 Researcher 3 | . . . . . . . . . . . . . . . . . . . . . 3 . . . . Sentry 19 | . . . . . 3 . 1 2 . 4 . 1 1 2 . . . . 1 . 3 . . 1 . Specialist 1 | . . . . . . . . . . . . . . . . . . . . . . . . . 1 Hunter 31 | . . . . . 1 . 2 . . . . . . 2 . . . . . 1 7 . 3 12 3 Programmer 46 | . . . . . . . 1 . . . . . . 1 . . . . 2 . 19 . 4 9 10 Behemoth 4 | . . . . . . . . . . 2 . . . . . . . . . . . . . . 2 Cetus Guard 3 | . . . . . . . . . . . 3 . . . . . . . . . . . . . . M Guard 1 | . . . . . . . . . . . . . . . . . . . . . . . . . 1 Enhanced Grunt 1 | . . . . . . . . . . . . . . 1 . . . . . . . . . . . Combat Programmer 1 | . . . . . . . . . . . . . . . . . . . . . . . . . 1 Striker 1 | . . . . . . . . . . . . . . . . . 1 . . . . . . . . Packrat 1 | . . . . . . . . . . . . . . . . 1 . . . . . . . . . Samaritan 4 | . . . . . . . . . . . . . . . 3 1 . . . . . . . . . Thug 1 | . . . . . . . . . . . . . . . . . . . . . . . 1 . . Butcher 1 | . . . . . . . . . . 1 . . . . . . . . . . . . . . . Mutant 1 | . . . . . . . . . . . . . . . . . . . . . . . 1 . . Best Kill Streak 13 | . 3 2 . . 6 . 10 5 4 4 4 2 1 7 . . 3 . 6 1 7 1 7 13 6 Combat Bots Only 12 | . 3 2 . . 5 . 10 3 2 3 3 1 1 3 . . 3 . 6 1 5 1 5 12 6 Max Kills in Single Turn 4 | . 1 1 . . 4 . 2 2 2 2 1 1 1 2 1 1 1 . 2 1 2 1 4 3 2 Gunslinging 2 | . . . . . 1 . . . . . . . . . . . . . 1 . 1 . . 2 1 Exploded 4 | . . . . . 4 . 2 . . . . . . . . . . . . . 1 . 2 2 1 Melee 1 | . . . . . . . . . . . . . . . . . . . . . . . . . 1 Uniques/NPCs Destroyed 1 | . . . . . . . . . . . . . . . . . . . . . . . . . 1 MAIN.C Shell (-1/Command) Combat | -11 -10 -10 -10 -9 -8 -7 -7 -7 -6 -6 -6 -6 -6 -5 -5 -5 -5 -4 -4 -3 -3 -2 -2 -1 -1 -------- Run | Yrd Mat Min Exi Min Mat Fac Gar Fac Fac Ext Cet Arc Hub Fac Upp Upp War Pro Fac Res Tes Res Qua Acc Com Hostile Shots Fired 1593 | . 55 22 . . 120 . 32 4 6 16 2 4 1 90 . 17 23 10 26 6 292 10 40 327 490 Missed 503 | . 14 6 . . 31 . 13 1 4 10 1 . . 36 . 4 6 6 7 3 83 4 10 101 163 Intercepted 10 | . . . . . . . . . . . . . . . . . . . . . . . . . 10 Hits 1090 | . 41 16 . . 89 . 19 3 2 6 1 4 1 54 . 13 17 4 19 3 209 6 30 226 327 Melee 19 | . . . . . . . . . . . . . . . . 5 . . 7 . . . . . 7 Projectile 1071 | . 41 16 . . 89 . 19 3 2 6 1 4 1 54 . 8 17 4 12 3 209 6 30 226 320 AOE 8 | . . 2 . . . . . . . . . . . . . . . . 1 . . . . . 5 Critical Strikes 65 | . 1 . . . 4 . 1 . . . 1 . . 3 . . . . 6 . 17 . . 10 22 Actively Blocked 1 | . . . . . . . . . . . . . . . . . . . . . . . . 1 . Part Disruptions 13 | . . . . . . . . . . . . . . . . . . . . . 4 . . 2 7 Damage Taken 21960 | . 445 247 . . 1388 . 278 48 25 70 73 107 18 980 . 144 439 71 423 58 3575 144 752 3839 8836 Core 2475 | . 108 23 . . 130 . 16 . . 10 13 22 . 231 . 25 42 18 28 . 163 . 46 515 1085 Absorbed by Shields 3507 | . . . . . . . 4 . . 67 48 10 . 15 . . . . . . 790 . . 1270 1303 Redirected to Core 240 | . . . . . . . . . . . . . . . . . . . . . . . . 240 . Redirected to Shielding 118 | . . . . . . . . . . . . . . . . . . . . . . . . 118 . Ignored by Resistances 376 | . . . . . . . . . . . . . . . . . . . . . . . . . 376 Regen/Repaired (Parts) 738 | . 149 . . . . . . 11 27 . . . . 45 . . 72 . 256 . 66 13 99 . . Core Remaining (%) 84 | 100 . . . 47 76 . . 97 . . . . 94 . . . . 68 97 . 87 . 96 . . Volleys Fired 915 | . 53 17 . . 86 . 79 20 13 76 33 16 4 53 6 11 17 3 25 12 116 3 33 114 125 Largest 4 | . 2 2 . . 3 . 1 1 1 1 1 1 1 4 4 4 4 4 4 4 4 3 1 4 4 Hottest 288 | . 85 40 . . 111 . 60 60 60 60 240 60 60 80 80 80 80 80 80 80 270 190 200 280 288 Shots Fired 1915 | . 105 34 . . 235 . 79 20 13 76 33 16 4 90 24 30 67 6 74 48 347 9 33 244 328 Gun 1830 | . 105 34 . . 231 . 77 20 13 76 33 16 4 84 24 26 67 4 67 48 332 9 21 230 309 Cannon 46 | . . . . . . . . . . . . . . . . . . . 3 . . . 12 14 17 Launcher 35 | . . . . . 4 . 2 . . . . . . 4 . 4 . 2 4 . 15 . . . . Special 4 | . . . . . . . . . . . . . . 2 . . . . . . . . . . 2 Kinetic 1395 | . 53 34 . . 165 . 77 20 13 76 32 16 4 84 24 26 67 4 70 48 207 3 . 154 218 Thermal 444 | . 52 . . . 66 . . . . . 1 . . . . . . . . . 123 6 33 90 73 Explosive 35 | . . . . . 4 . 2 . . . . . . 4 . 4 . 2 4 . 15 . . . . Electromagnetic . | . . . . . . . . . . . . . . . . . . . . . . . . . . Entropic 37 | . . . . . . . . . . . . . . . . . . . . . 2 . . . 35 Robot Hit Streak 46 | . 11 6 . . 14 . 6 5 4 12 5 6 3 9 5 7 13 . 4 5 13 4 7 46 39 Robot Miss Streak 8 | . 6 3 . . 4 . 5 5 7 3 3 6 4 6 1 6 8 . 5 2 6 3 2 5 4 Penetration Max 2 | . . . . . . . . . . . . . . . . . . . . . . . . 2 1 Secondary Targets 25 | . . . . . 2 . . . . . . . . . . . 1 . 2 1 4 . . 8 7 Max Gunslinging Chain 2 | . . . . . 1 . . . . . . . . . . . 1 . 1 1 1 . . 2 1 Capacitor 118 | . . . . . . . . . . . . . . . . . . . . . . . 33 58 27 Shots Hit Robots 1235 | . 78 21 . . 166 . 56 16 10 58 10 13 4 59 16 10 33 . 28 13 209 4 16 167 248 Core Hits 853 | . 60 7 . . 79 . 56 16 12 69 26 9 4 46 8 12 22 . 17 7 103 4 23 119 154 Critical Kills 9 | . . 1 . . . . . . . . . . . . . . . . . . 1 . 1 4 2 Critical Parts Destroyed 13 | . . . . . . . . . . . . . . . . . . . . . 2 . . 3 8 Critical Strikes 25 | . . 1 . . 3 . . . . . . . . . . . . . . . 3 . 1 7 10 Burn 3 | . . . . . 3 . . . . . . . . . . . . . . . . . . . . Meltdown 2 | . . . . . . . . . . . . . . . . . . . . . . . 1 . 1 Destroy 14 | . . 1 . . . . . . . . . . . . . . . . . . 2 . . 7 4 Detonate 6 | . . . . . . . . . . . . . . . . . . . . . 1 . . . 5 Melee Attacks 6 | . . . . . . . . . . . . . . 3 . . . . . . . . 3 . . Impact . | . . . . . . . . . . . . . . . . . . . . . . . . . . Slashing 6 | . . . . . . . . . . . . . . 3 . . . . . . . . 3 . . Piercing . | . . . . . . . . . . . . . . . . . . . . . . . . . . Sneak Attacks 1 | . . . . . . . . . . . . . . 1 . . . . . . . . . . . Combat Hostiles . | . . . . . . . . . . . . . . . . . . . . . . . . . . Follow-up Attacks . | . . . . . . . . . . . . . . . . . . . . . . . . . . Damage Inflicted 53983 | . 957 167 . . 2983 . 3159 798 435 4538 1353 838 198 2542 314 382 828 . 793 266 7054 152 3835 9036 13355 Guns 39391 | . 957 164 . . 2347 . 3050 798 435 4538 1353 838 198 2297 314 324 828 . 788 266 5773 152 383 5779 7809 Cannons 4905 | . . . . . . . . . . . . . . . . . . . . . . . 1249 1347 2309 Explosions 9318 | . . . . . 636 . 109 . . . . . . 112 . 58 . . 5 . 1239 . 2203 1731 3225 Melee 129 | . . . . . . . . . . . . . . 129 . . . . . . . . . . . Ramming 240 | . . 3 . . . . . . . . . . . 4 . . . . . . 42 . . 179 12 Kinetic 29152 | . 369 164 . . 1583 . 3050 798 435 4538 1353 838 198 2297 314 324 828 . 788 266 3095 24 . 3487 4403 Thermal 19623 | . 588 . . . 764 . . . . . . . . . . . . . . . 2782 128 3650 5370 6341 Explosive 2001 | . . . . . 636 . 109 . . . . . . 112 . 58 . . 5 . 982 . . . 99 Electromagnetic 197 | . . . . . . . . . . . . . . . . . . . . . 12 . 185 . . Impact . | . . . . . . . . . . . . . . . . . . . . . . . . . . Slashing 129 | . . . . . . . . . . . . . . 129 . . . . . . . . . . . Piercing . | . . . . . . . . . . . . . . . . . . . . . . . . . . Entropic 2641 | . . . . . . . . . . . . . . . . . . . . . 141 . . . 2500 Highest Corruption 24 | . . . . . . . 1 1 . . . . . . . . 3 3 3 . 24 . 5 6 21 Average Corruption 8 | . . . . . . . 1 1 . . . . . . . . 3 3 2 . 15 . 3 5 10 Corruption Purged . | . . . . . . . . . . . . . . . . . . . . . . . . . . Corruption Blocked . | . . . . . . . . . . . . . . . . . . . . . . . . . . Effects 246 | . . . . . . . 3 5 . . . . . . . . 3 2 2 . 98 . 12 21 100 Message Errors 57 | . . . . . . . . 2 . . . . . . . . . . 1 . 29 . 2 2 21 Matter Fused 48 | . . . . . . . 1 1 . . . . . . . . . . . . 20 . 3 3 20 Heat Flow Errors 26 | . . . . . . . . . . . . . . . . . . 1 1 . 6 . 1 3 14 Energy Discharges 26 | . . . . . . . 1 . . . . . . . . . 2 . . . 8 . 2 1 12 Parts Rejected 3 | . . . . . . . . . . . . . . . . . . . . . . . 1 . 2 Parts Fused 2 | . . . . . . . . . . . . . . . . . . . . . 2 . . . . Data Loss (minor) 30 | . . . . . . . 1 2 . . . . . . . . . 1 . . 9 . 1 4 12 Data Loss (major) 13 | . . . . . . . . . . . . . . . . . . . . . 6 . 2 . 5 Misfires 8 | . . . . . . . . . . . . . . . . . . . . . 1 . . 2 5 Alerts 5 | . . . . . . . . . . . . . . . . . . . . . 2 . . . 3 Misdirections 1 | . . . . . . . . . . . . . . . . . . . . . 1 . . . . Weapon Failures 27 | . . . . . . . . . . . . . . . . . 1 . . . 14 . . 6 6 Overload Shots 19 | . . . . . . . . . . . 1 . . . . . . . . . 10 . . 4 4 Effects 1 | . . . . . . . . . . . . . . . . . . . . . . . . 1 . Energy Bleed 1 | . . . . . . . . . . . . . . . . . . . . . . . . 1 . Overflow Damage 1528 | . . . . . 25 . . . . . . . . 1 . . . . . . 51 . 487 420 544 Projectiles 739 | . . . . . . . . . . . . . . . . . . . . . . . 228 281 230 Explosions 745 | . . . . . 25 . . . . . . . . 1 . . . . . . 51 . 259 95 314 Melee 44 | . . . . . . . . . . . . . . . . . . . . . . . . 44 . Knockbacks 2 | . . . . . . . . . . . . . . . . . . . . . . . . 2 . Impact 2 | . . . . . . . . . . . . . . . . . . . . . . . . 2 . Kinetic . | . . . . . . . . . . . . . . . . . . . . . . . . . . Secondary . | . . . . . . . . . . . . . . . . . . . . . . . . . . Self-Inflicted Damage 897 | . . . . . 73 . . . . . . . . 2 . . . . . . 73 . 165 152 432 Shots 14 | . . . . . 4 . . . . . . . . . . . . . . . 1 . 2 2 5 Rammed 6 | . . 1 . . . . . . . . . . . 1 . . . . . . . . . . 4 Targets Rammed 18 | . . 1 . . . . . . . . . . . 1 . . . . . . 3 . . 9 4 Kicked 12 | . . . . . . . . . . . . . . . . . . . . . 3 . . 9 . Crushed . | . . . . . . . . . . . . . . . . . . . . . . . . . . Highest Temperature 408 | . 231 49 . . 174 . 229 105 121 329 268 240 43 408 145 88 151 215 104 60 348 64 168 189 223 Average Temperature 69 | . 73 23 . . 23 . 53 40 44 78 102 88 25 91 64 34 44 95 30 30 89 33 54 97 74 Received Heat Transfer 2225 | . 198 102 . . 648 . 90 18 . 4 . 13 9 12 . 36 9 . . . 116 36 . 347 587 Effects 2 | . 1 . . . . . . . . . . . . 1 . . . . . . . . . . . Interference 2 | . 1 . . . . . . . . . . . . 1 . . . . . . . . . . . Siege Activations . | . . . . . . . . . . . . . . . . . . . . . . . . . . Martial Activations . | . . . . . . . . . . . . . . . . . . . . . . . . . . Shielding Activations . | . . . . . . . . . . . . . . . . . . . . . . . . . . Robots Disrupted . | . . . . . . . . . . . . . . . . . . . . . . . . . . Combat Hostiles . | . . . . . . . . . . . . . . . . . . . . . . . . . . Robots Corrupted 1 | . . . . . . . . . . . . . . . . . . . . . . . . 1 . Combat Hostiles . | . . . . . . . . . . . . . . . . . . . . . . . . . . Parts Fried 5 | . . . . . . . . . . . . . . 1 . . . . . . . . . 3 1 Impact Corruptions 3 | . . . . . . . . . . . . . . . . . . . . . . . . 3 . Robots Melted 4 | . . . . . . . . . . . . . . . . . . . . . . . 1 . 3 Combat Hostiles 4 | . . . . . . . . . . . . . . . . . . . . . . . 1 . 3 Parts Melted 24 | . 1 . . . . . 1 1 . 2 . 1 . . . . . . . . 8 . 1 7 2 Heat Transferred 16713 | . 933 . . . 1961 . . . . . . . . . . . . . . . 2901 148 2770 4091 3909 Parts Sabotaged 5 | . . . . . . . . . . . . . . . . . . . . . . . . . 5 Parts Stolen 4 | . . . . . . . . . . . . . . . . 4 . . . . . . . . . Parts Stripped . | . . . . . . . . . . . . . . . . . . . . . . . . . . Power Chain Reactions 2 | . . . . . . . . . . . . . . . . . . . . . 2 . . . . Alert | -11 -10 -10 -10 -9 -8 -7 -7 -7 -6 -6 -6 -6 -6 -5 -5 -5 -5 -4 -4 -3 -3 -2 -2 -1 -1 ------- Run | Yrd Mat Min Exi Min Mat Fac Gar Fac Fac Ext Cet Arc Hub Fac Upp Upp War Pro Fac Res Tes Res Qua Acc Com Maximum Alert Level 4 | . . . . . 1 . 4 3 2 2 1 1 1 3 . . . . . . 4 2 2 4 4 Low Security (%) 28 | 100 100 100 . 100 44 100 5 . . 68 . 13 84 8 . . . . 100 100 3 4 52 . . Level 1 20 | . . . . . 55 . 4 . 85 16 100 86 15 14 . . . . . . 33 47 19 7 . Level 2 19 | . . . . . . . 34 69 14 14 . . . 32 . . . . . . 39 47 28 24 . Level 3 10 | . . . . . . . 40 30 . . . . . 44 . . . . . . 20 . . 30 4 Level 4 19 | . . . . . . . 14 . . . . . . . . . . . . . 2 . . 37 95 Level 5 . | . . . . . . . . . . . . . . . . . . . . . . . . . . High Security . | . . . . . . . . . . . . . . . . . . . . . . . . . . Max Security . | . . . . . . . . . . . . . . . . . . . . . . . . . . Peak Influence 1564 | . 106 40 . . 383 165 1277 758 413 620 386 362 381 1042 . . . . 174 118 1104 621 526 1564 1529 Initial 1000 | . . 14 . . . 165 80 669 333 170 333 140 116 186 . . . . . 90 . 617 103 305 1000 Average 542 | . 41 5 . . 200 143 740 683 372 198 321 298 152 618 . . . . 31 18 545 395 234 960 1272 Influence Increases 13428 | . 432 60 . . 849 20 1217 423 155 1016 340 242 365 1307 . 60 290 45 332 116 1838 102 679 1825 1715 Destroy 0b10 Robot/C 6100 | . 240 40 . . 600 . 700 120 40 500 160 80 100 380 . . 140 . 140 40 840 20 280 1000 680 Destroy 0b10 Robot/NC 565 | . 35 5 . . 40 . . 35 30 50 10 10 5 90 . . . . 5 . 75 5 30 65 75 Destroy Leader 950 | . 64 10 . . 114 . 40 34 4 62 . . 30 96 . . . . 30 10 138 . 40 172 106 Allied During Kill 1023 | . . . . . . . 29 . . 313 145 90 135 265 . . . . . 13 33 . . . . Successful Hack 642 | . 32 5 . . 11 20 . 78 50 45 . . 12 110 . . . . 52 38 71 14 32 27 45 Select Force Hacks 80 | . . . . . 30 . . . . . . . 50 . . . . . . . . . . . . Disable Machine 795 | . . . . . . . 60 30 15 . 15 60 15 120 . . . . 15 . 195 . 60 150 60 Anti-Garrison Action 250 | . . . . . . . 200 . . . . . . . . . . . . . . . . . 50 Destroy Structure 1688 | . 1 . . . 24 . 68 6 1 16 10 2 18 156 . . . . 60 . 486 3 237 291 309 Partial Spotted 165 | . . . . . . . . 75 . 30 . . . 45 . . . . . . . . . . 15 Lose Combat Pursuer 1170 | . 60 . . . 30 . 120 45 15 . . . . 45 . 60 150 45 30 15 . 60 . 120 375 Influence Decreases 11873 | . 394 98 . . 485 269 55 1020 487 768 585 261 316 951 384 178 341 229 158 290 740 1015 354 771 1724 Entered New Map 4453 | . . 24 . . . 199 35 608 347 178 263 211 216 195 274 68 235 184 . 84 . 481 82 205 564 Time Decay 5568 | . 353 74 . . 425 70 . 262 140 440 222 50 40 356 110 100 96 45 158 45 650 534 262 446 690 Lost Part 670 | . 10 . . . 60 . . . . . . . . 20 . 10 10 . . 10 70 . 10 120 350 Lost Ally 433 | . . . . . . . 20 . . . 100 . 60 80 . . . . . 33 20 . . . 120 Purge Threat 749 | . 31 . . . . . . 150 . 150 . . . 300 . . . . . 118 . . . . . Squads Dispatched 79 | . 2 . . . 3 . . 3 1 2 . . 4 5 . . . . 3 4 12 4 5 5 26 Investigation 11 | . . . . . 3 . . . 1 1 . . 3 1 . . . . . 1 1 . . . . Extermination 27 | . . . . . . . . 3 . . . . . 1 . . . . 1 . 7 . 1 3 11 Reinforcement 30 | . 2 . . . . . . . . 1 . . 1 3 . . . . 2 3 4 4 4 . 6 Assault 10 | . . . . . . . . . . . . . . . . . . . . . . . . 1 9 Garrison 1 | . . . . . . . . . . . . . . . . . . . . . . . . 1 . Intercept . | . . . . . . . . . . . . . . . . . . . . . . . . . . Searches Triggered . | . . . . . . . . . . . . . . . . . . . . . . . . . . Construction Impeded 2 | . . . . . . . . . . . . . . 1 . . . . . . . . 1 . . Haulers Reinforced 3 | . . . . . . . . . . . . . . 1 . . . . . . . 2 . . . Active Scanning Responses . | . . . . . . . . . . . . . . . . . . . . . . . . . . Cargo Convoy Interrupts . | . . . . . . . . . . . . . . . . . . . . . . . . . . Stealth | -11 -10 -10 -10 -9 -8 -7 -7 -7 -6 -6 -6 -6 -6 -5 -5 -5 -5 -4 -4 -3 -3 -2 -2 -1 -1 --------- Run | Yrd Mat Min Exi Min Mat Fac Gar Fac Fac Ext Cet Arc Hub Fac Upp Upp War Pro Fac Res Tes Res Qua Acc Com Distress Signals 40 | . 3 . . . 5 . . . . 1 1 . . 3 . . . . . 1 . 9 3 2 12 Communications Jammed 63 | . . . . . . . . . . . . . . . . . . . . . 2 . . 60 1 Distress Signals 63 | . . . . . . . . . . . . . . . . . . . . . 2 . . 60 1 Times Spotted 543 | . 30 5 . . 41 1 34 10 6 20 9 6 11 32 . 12 70 4 12 4 45 6 23 67 95 Peak Tracking Total 26 | . 5 2 . . 6 1 11 4 3 3 5 1 7 7 . 8 17 3 5 2 4 3 6 14 26 Tactical Retreats 35 | . 3 . . . 1 . 3 2 1 . . . . 3 . 2 4 1 1 1 . 3 . 4 6 Traps | -11 -10 -10 -10 -9 -8 -7 -7 -7 -6 -6 -6 -6 -6 -5 -5 -5 -5 -4 -4 -3 -3 -2 -2 -1 -1 ------- Run | Yrd Mat Min Exi Min Mat Fac Gar Fac Fac Ext Cet Arc Hub Fac Upp Upp War Pro Fac Res Tes Res Qua Acc Com Traps Triggered 22 | . . . . . 1 . 6 2 2 4 . . 1 1 . . . . . 1 1 . . 1 2 Indirectly . | . . . . . . . . . . . . . . . . . . . . . . . . . . Trap Hack Attempts . | . . . . . . . . . . . . . . . . . . . . . . . . . . Triggered . | . . . . . . . . . . . . . . . . . . . . . . . . . . Disarmed 6 | . . . . . . . . . . . . . . . . . . . 6 . . . . . . Reprogrammed . | . . . . . . . . . . . . . . . . . . . . . . . . . . Reused . | . . . . . . . . . . . . . . . . . . . . . . . . . . Traps Extracted . | . . . . . . . . . . . . . . . . . . . . . . . . . . Installed . | . . . . . . . . . . . . . . . . . . . . . . . . . . Triggered . | . . . . . . . . . . . . . . . . . . . . . . . . . . Machines | -11 -10 -10 -10 -9 -8 -7 -7 -7 -6 -6 -6 -6 -6 -5 -5 -5 -5 -4 -4 -3 -3 -2 -2 -1 -1 ---------- Run | Yrd Mat Min Exi Min Mat Fac Gar Fac Fac Ext Cet Arc Hub Fac Upp Upp War Pro Fac Res Tes Res Qua Acc Com Machines Disabled 61 | . . . . . . . 8 2 1 . 1 4 1 8 . . 1 . 1 . 14 . 4 10 6 Max in Single Turn 2 | . . . . . . . 1 1 1 . 1 1 . 1 . . 1 . 1 . 1 . 1 2 2 Garrison Access 6 | . . . . . . . . . . . . . . 1 . . . . 1 . 1 3 . . . Garrison Relay 4 | . . . . . . . 4 . . . . . . . . . . . . . . . . . . Phase Generator 1 | . . . . . . . . . . . . . . . . . . . . . . . . . 1 Network Hub 1 | . . . . . . . . . . . . . 1 . . . . . . . . . . . . Machines Repaired . | . . . . . . . . . . . . . . . . . . . . . . . . . . Machines Dismantled 1 | . . . . . . . . . . . . . . . . . 1 . . . . . . . . Machines Sabotaged 1 | . . . . . . . . . . . . . 1 . . . . . . . . . . . . Overloaded Fab Kills . | . . . . . . . . . . . . . . . . . . . . . . . . . . Hacking | -11 -10 -10 -10 -9 -8 -7 -7 -7 -6 -6 -6 -6 -6 -5 -5 -5 -5 -4 -4 -3 -3 -2 -2 -1 -1 --------- Run | Yrd Mat Min Exi Min Mat Fac Gar Fac Fac Ext Cet Arc Hub Fac Upp Upp War Pro Fac Res Tes Res Qua Acc Com Machines Accessed 108 | . 7 1 2 . 6 3 2 10 3 15 1 . 2 12 1 . 2 . 7 6 8 3 4 5 8 Terminals 67 | . 6 1 . . 3 1 2 5 2 15 1 . 2 7 . . . . 4 2 3 1 2 3 7 Fabricators 1 | . . . . . . . . . . . . . . . . . . . . 1 . . . . . Repair Stations 17 | . 1 . . . 1 1 . 2 1 . . . . 2 . . . . 2 1 2 1 1 1 1 Recycling Units 1 | . . . . . 1 . . . . . . . . . . . . . . . . . . . . Scanalyzers 9 | . . . . . 1 . . 2 . . . . . 2 . . . . . 1 2 . 1 . . Garrison Access 8 | . . . . . . 1 . 1 . . . . . 1 . . . . 1 1 1 1 . 1 . Total Hacks 296 | . 28 1 2 . 17 11 4 27 4 28 2 . 4 41 1 . 6 . 28 21 24 4 15 11 17 Successful 147 | . 16 1 2 . 10 7 1 15 4 12 . . 4 25 1 . 6 . 16 6 10 3 4 1 3 Failed 148 | . 11 . . . 7 4 3 12 . 16 2 . . 16 . . . . 12 15 14 1 11 10 14 Catastrophic 23 | . . . . . . 2 1 . . 4 . . . 3 . . . . 1 3 3 1 1 1 3 Database Lockouts 1 | . 1 . . . . . . . . . . . . . . . . . . . . . . . . Manual 84 | . 14 . 1 . 8 1 . 9 1 11 1 . 4 13 . . . . 5 4 3 . . 2 7 Terminals 174 | . 23 1 . . 9 6 4 16 2 28 2 . 4 22 . . . . 13 5 9 1 8 5 16 Fabricators 8 | . . . . . . . . . . . . . . . . . . . . 8 . . . . . Repair Stations 58 | . 5 . . . 3 4 . 6 2 . . . . 8 . . . . 14 3 6 2 2 2 1 Recycling Units 1 | . . . . . 1 . . . . . . . . . . . . . . . . . . . . Scanalyzers 31 | . . . . . 4 . . 4 . . . . . 10 . . . . . 1 7 . 5 . . Garrison Access 15 | . . . . . . 1 . 1 . . . . . 1 . . . . 1 4 2 1 . 4 . Terminal Hacks 59 | . 8 1 2 . 4 4 1 5 1 8 . . . 6 1 . 6 . 4 2 1 1 1 1 2 Record 2 | . . . 1 . . . . . . . . . . . . . . . . . . . . . 1 Robot Analysis 2 | . . . . . 2 . . . . . . . . . . . . . . . . . . . . Prototype ID Bank 12 | . 2 . . . 2 1 . . . 1 . . . . . . 5 . 1 . . . . . . Open Door 9 | . . . . . . . 1 . 1 4 . . . . 1 . 1 . . . . . . . 1 Open DSF 2 | . . . . . . . . 1 . . . . . 1 . . . . . . . . . . . Level Access Points 5 | . . . . . . 1 . 1 . . . . . 1 . . . . 1 . . 1 . . . Branch Access Points 4 | . 1 . . . . . . . . . . . . 1 . . . . . 1 . . . 1 . Terminal Index 1 | . 1 . . . . . . . . . . . . . . . . . . . . . . . . Alert Level 2 | . . . . . . . . . . 1 . . . . . . . . 1 . . . . . . Unreport Threat 6 | . 1 . . . . . . 1 . 1 . . . 2 . . . . . 1 . . . . . Locate Traps 2 | . 1 . . . . . . . . . . . . 1 . . . . . . . . . . . Disarm Traps 1 | . . . . . . . . . . . . . . . . . . . 1 . . . . . . Maintenance Status 1 | . . . . . . 1 . . . . . . . . . . . . . . . . . . . Recall Reinforcements 1 | . . . . . . . . . . 1 . . . . . . . . . . . . . . . Hauler Manifests 1 | . . . . . . 1 . . . . . . . . . . . . . . . . . . . Zone Layout 7 | . 2 1 . . . . . 2 . . . . . . . . . . . . 1 . 1 . . Proto ID Catalog 1 | . . . 1 . . . . . . . . . . . . . . . . . . . . . . Fabricator Hacks 3 | . . . . . . . . . . . . . . . . . . . . 3 . . . . . Network Status 1 | . . . . . . . . . . . . . . . . . . . . 1 . . . . . Load Schematic 1 | . . . . . . . . . . . . . . . . . . . . 1 . . . . . Build 1 | . . . . . . . . . . . . . . . . . . . . 1 . . . . . Repair Station Hacks 29 | . 4 . . . 1 1 . 2 2 . . . . 5 . . . . 9 . 2 1 2 . . Scan Component 17 | . 2 . . . 1 1 . 1 1 . . . . 3 . . . . 5 . 1 1 1 . . Repair 12 | . 2 . . . . . . 1 1 . . . . 2 . . . . 4 . 1 . 1 . . Recycling Unit Hacks . | . . . . . . . . . . . . . . . . . . . . . . . . . . Scanalyzer 17 | . . . . . 2 . . 3 . . . . . 8 . . . . . . 3 . 1 . . Insert Component 5 | . . . . . 1 . . 1 . . . . . 2 . . . . . . 1 . . . . Analyze 7 | . . . . . . . . 1 . . . . . 5 . . . . . . 1 . . . . Retrieve Study 5 | . . . . . 1 . . 1 . . . . . 1 . . . . . . 1 . 1 . . Garrison Access Hacks 6 | . . . . . . 1 . 1 . . . . . 1 . . . . 1 . 1 1 . . . Unlock Access 2 | . . . . . . 1 . 1 . . . . . . . . . . . . . . . . . Seal Access 4 | . . . . . . . . . . . . . . 1 . . . . 1 . 1 1 . . . Unauthorized Hacks 33 | . 4 . . . 3 1 . 4 1 4 . . 4 5 . . . . 2 1 3 . . . 1 Terminals 30 | . 4 . . . 2 1 . 4 1 4 . . 4 5 . . . . 2 1 1 . . . 1 Track 1 | . . . . . . . . . . . . . . . . . . . . . . . . . 1 Assimilate 1 | . . . . . . . . . . . . . . 1 . . . . . . . . . . . Botnet 26 | . 4 . . . 2 1 . 4 1 4 . . 2 4 . . . . 2 1 1 . . . . Sabotage 2 | . . . . . . . . . . . . . 2 . . . . . . . . . . . . Fabricators . | . . . . . . . . . . . . . . . . . . . . . . . . . . Repair Stations 2 | . . . . . . . . . . . . . . . . . . . . . 2 . . . . Mechanics 1 | . . . . . . . . . . . . . . . . . . . . . 1 . . . . Patch 1 | . . . . . . . . . . . . . . . . . . . . . 1 . . . . Recycling Units 1 | . . . . . 1 . . . . . . . . . . . . . . . . . . . . Tunnel 1 | . . . . . 1 . . . . . . . . . . . . . . . . . . . . Scanalyzers . | . . . . . . . . . . . . . . . . . . . . . . . . . . Garrison Access . | . . . . . . . . . . . . . . . . . . . . . . . . . . Data Cores Recovered 2 | . . . . . . . . . 1 . . . . . . . . . . . . . 1 . . Used 2 | . . . . . . . . . 1 . . . . . . . . . . . . . 1 . . Hacking Detections 87 | . 7 1 . . 5 3 2 8 2 15 1 . 1 9 . . . . 6 6 6 1 3 4 7 Full Trace Events 3 | . . . . . 1 . . . . 1 . . . 1 . . . . . . . . . . . Feedback Events . | . . . . . . . . . . . . . . . . . . . . . . . . . . Feedback Blocked . | . . . . . . . . . . . . . . . . . . . . . . . . . . Robot Schematics Acquired 5 | . . . . . . . . . . . . . . . . . . . . . 5 . . . . Robots Built 3 | . . . . . . . . . . . . . . . . . . . . 3 . . . . . Authchips . | . . . . . . . . . . . . . . . . . . . . . . . . . . Time 102 | . . . . . . . . . . . . . . . . . . . . 102 . . . . . Total Robot Build Rating 24 | . . . . . . . . . . . . . . . . . . . . 24 . . . . . Part Schematics Acquired 14 | . . . . . . . . 1 . . . . . 2 . . . . . . 9 . 2 . . Parts Built . | . . . . . . . . . . . . . . . . . . . . . . . . . . Authchips . | . . . . . . . . . . . . . . . . . . . . . . . . . . Time . | . . . . . . . . . . . . . . . . . . . . . . . . . . Total Part Build Rating . | . . . . . . . . . . . . . . . . . . . . . . . . . . Part Studies Acquired 5 | . . . . . 1 . . 1 . . . . . 1 . . . . . . 1 . 1 . . Parts Repaired 11 | . 2 . . . . . . 1 1 . . . . 1 . . . . 4 . 1 . 1 . . Time 711 | . 52 . . . . . . 68 30 . . . . 136 . . . . 356 . 36 . 33 . . Parts Recycled . | . . . . . . . . . . . . . . . . . . . . . . . . . . Recycled Matter . | . . . . . . . . . . . . . . . . . . . . . . . . . . Retrieved Matter . | . . . . . . . . . . . . . . . . . . . . . . . . . . Retrieved Components . | . . . . . . . . . . . . . . . . . . . . . . . . . . Parts Scanalyzed 4 | . . . . . 1 . . . . . . . . 2 . . . . . . 1 . . . . Part Schematics Acquired 4 | . . . . . . . . 1 . . . . . 2 . . . . . . 1 . . . . Parts Damaged 1 | . . . . . . . . 1 . . . . . . . . . . . . . . . . . Bothacking | -11 -10 -10 -10 -9 -8 -7 -7 -7 -6 -6 -6 -6 -6 -5 -5 -5 -5 -4 -4 -3 -3 -2 -2 -1 -1 ------------ Run | Yrd Mat Min Exi Min Mat Fac Gar Fac Fac Ext Cet Arc Hub Fac Upp Upp War Pro Fac Res Tes Res Qua Acc Com Used RIF Installer . | . . . . . . . . . . . . . . . . . . . . . . . . . . Robots Hacked . | . . . . . . . . . . . . . . . . . . . . . . . . . . Non-combat . | . . . . . . . . . . . . . . . . . . . . . . . . . . Combat . | . . . . . . . . . . . . . . . . . . . . . . . . . . Robot Hacks Applied . | . . . . . . . . . . . . . . . . . . . . . . . . . . Relay Couplers Released 23 | . . . . . . . 17 . . . . . . . . . . . . . . 2 . 4 . Machine Destruction 19 | . . . . . . . 17 . . . . . . . . . . . . . . 2 . . . Programmers 4 | . . . . . . . . . . . . . . . . . . . . . . . . 4 . Fabnet Peak Effective % . | . . . . . . . . . . . . . . . . . . . . . . . . . . Robots Rewired 10 | . . . . . . . 3 . . 6 . . . . . . . . . . 1 . . . . Allies Hacked . | . . . . . . . . . . . . . . . . . . . . . . . . . . Hacks Repelled . | . . . . . . . . . . . . . . . . . . . . . . . . . . Allies | -11 -10 -10 -10 -9 -8 -7 -7 -7 -6 -6 -6 -6 -6 -5 -5 -5 -5 -4 -4 -3 -3 -2 -2 -1 -1 -------- Run | Yrd Mat Min Exi Min Mat Fac Gar Fac Fac Ext Cet Arc Hub Fac Upp Upp War Pro Fac Res Tes Res Qua Acc Com Total Allies 33 | . . 2 . . . . 3 . . 11 5 . . 2 . . . . . 3 1 . . . 6 Largest Group 11 | . . 2 2 . . . 3 . . 10 11 10 9 5 . . . . . 3 1 . . . 5 Highest-Rated Group 804 | . . 41 41 . . . 95 . . 442 804 765 601 480 . . . . . 126 122 . . . 72 Highest-Rated Ally 159 | . . 31 31 . . . 39 . . 159 159 159 96 142 . . . . . 42 122 . . . 15 Initial Warlord ECA Mod 6 | . . . . . . . . 6 5 5 5 5 5 4 4 4 4 3 3 2 2 1 1 . . Total Orders 6 | . . . . . . . . . . . . . 3 1 . . . . . . 2 . . . . STAY 3 | . . . . . . . . . . . . . 2 . . . . . . . 1 . . . . FOLLOW 3 | . . . . . . . . . . . . . 1 1 . . . . . . 1 . . . . Ally Attacks 240 | . . . . . . . 17 . . 40 33 13 43 55 . . . . . 5 11 . . . 23 Total Damage 8928 | . . . . . . . 278 . . 852 764 371 1656 2612 . . . . . 134 1866 . . . 395 Kills 49 | . . . . . . . 5 . . 3 5 3 6 15 . . . . . 1 11 . . . . Allies Corrupted 2 | . . . . . . . . . . . . . . 1 . . . . . . 1 . . . . Allies Melted 3 | . . . . . . . . . . . . . . . . . 1 . . . . 2 . . . Field Lobotomies 2 | . . . . . . . . . . . . . . 2 . . . . . . . . . . . Intel | -11 -10 -10 -10 -9 -8 -7 -7 -7 -6 -6 -6 -6 -6 -5 -5 -5 -5 -4 -4 -3 -3 -2 -2 -1 -1 ------- Run | Yrd Mat Min Exi Min Mat Fac Gar Fac Fac Ext Cet Arc Hub Fac Upp Upp War Pro Fac Res Tes Res Qua Acc Com Active Infowar (turns) 9167 | . . . . . . . . . 285 1077 . 2 97 815 221 208 646 274 689 296 1281 1512 572 930 262 Sensors 6608 | . . . . . . . . . 285 1075 . 2 97 705 220 87 . . 26 296 1280 1512 572 451 . Structural 238 | . . . . . . . . . . . . . . . . . . . . . . . . 238 . Machine Analysis 2828 | . . . . . . . . . . 2 . . . 814 221 208 646 274 663 . . . . . . Jamming 3891 | . . . . . . . . . . . . . . . . . . . 203 296 563 1511 154 902 262 ECM 2 | . . . . . . . . . . . . . . . . . . . . . . 2 . . . Robot Analysis Total 2 | . . . . . 2 . . . . . . . . . . . . . . . . . . . . Derelict Logs Recovered 6 | . . 1 . 2 . . . . . . . . . . 1 1 . 1 . . . . . . . Drone Launches . | . . . . . . . . . . . . . . . . . . . . . . . . . . Drone Recoveries . | . . . . . . . . . . . . . . . . . . . . . . . . . . Exploration | -11 -10 -10 -10 -9 -8 -7 -7 -7 -6 -6 -6 -6 -6 -5 -5 -5 -5 -4 -4 -3 -3 -2 -2 -1 -1 ------------- Run | Yrd Mat Min Exi Min Mat Fac Gar Fac Fac Ext Cet Arc Hub Fac Upp Upp War Pro Fac Res Tes Res Qua Acc Com Turns Passed 18319 | 6 1063 420 378 239 1046 144 735 562 285 1096 468 105 99 815 221 208 646 274 693 296 2458 1512 572 1113 2865 Spaces Moved 17805 | 1 652 293 216 195 414 179 1225 1239 504 1509 565 89 167 1342 461 296 664 590 655 499 2199 1228 395 558 1670 Core 55 | . . . . . . . . . . . . . . . . . . . . . . . . . 55 Treads 1144 | . . 1 99 46 287 . . . . . . . . . . . . . . . . . . . 711 Legs 4565 | . . . . . 14 . . . . . . . . . . . . . . . 1466 1228 395 558 904 Wheels 1324 | 1 652 292 117 149 113 . . . . . . . . . . . . . . . . . . . . Hover 10717 | . . . . . . 179 1225 1239 504 1509 565 89 167 1342 461 296 664 590 655 499 733 . . . . Flight . | . . . . . . . . . . . . . . . . . . . . . . . . . . Fastest Speed 25 | 95 95 115 110 110 100 34 34 30 34 30 34 34 34 28 38 33 29 29 25 36 44 105 116 112 50 Average Speed 69 | 95 112 115 172 121 147 34 34 33 34 33 34 34 34 33 38 38 40 44 36 41 85 114 116 115 122 Slowest Speed 400 | 95 125 240 240 160 190 34 34 34 34 34 94 34 34 38 38 42 53 45 106 44 108 120 117 182 400 Overloaded Moves 233 | . . . . . . . . 7 . 136 . . . 21 . 30 6 24 9 . . . . . . Propulsion Burnouts . | . . . . . . . . . . . . . . . . . . . . . . . . . . Robots Hopped . | . . . . . . . . . . . . . . . . . . . . . . . . . . Potential Cave-ins . | . . . . . . . . . . . . . . . . . . . . . . . . . . Cave-ins Triggered . | . . . . . . . . . . . . . . . . . . . . . . . . . . Exploration Rate (%) 47 | 1 98 57 60 67 30 5 74 27 9 88 78 69 10 31 64 46 75 82 17 7 96 32 48 16 51 Regions Visited 25 Branch Regions 14 Pre-discovered Areas 4 | . . . 1 1 1 . . . . . . . . . 1 . . . . . . . . . . Known Exits Taken 19 | . 1 . . . 1 1 . 1 1 1 1 1 1 1 1 1 . 1 1 1 1 1 1 1 . Unknown Exits Taken 5 | 1 . 1 1 1 . . . . . . . . . . . . 1 . . . . . . . . Scrap Searched 6 | . . . . 1 . . . . . . . . . . 1 1 . 3 . . . . . . . Spaces Dug 303 | . . . . . . . . . . . . . . 16 . 26 . 26 11 . 198 . 2 6 18 Terrain Destroyed 931 | . . . . . 20 . 21 3 1 10 6 1 1 44 . 48 . 26 38 . 351 1 108 111 141 Melee . | . . . . . . . . . . . . . . . . . . . . . . . . . . Projectile 123 | . . . . . . . 1 3 1 10 6 1 1 10 . 1 . 1 3 . 37 1 13 23 11 AOE 804 | . . . . . 20 . 20 . . . . . . 34 . 47 . 25 35 . 313 . 95 87 128 Terrain Rammed . | . . . . . . . . . . . . . . . . . . . . . . . . . . Walls Destroyed . | . . . . . . . . . . . . . . . . . . . . . . . . . . Machines Disabled . | . . . . . . . . . . . . . . . . . . . . . . . . . . Actions | -11 -10 -10 -10 -9 -8 -7 -7 -7 -6 -6 -6 -6 -6 -5 -5 -5 -5 -4 -4 -3 -3 -2 -2 -1 -1 --------- Run | Yrd Mat Min Exi Min Mat Fac Gar Fac Fac Ext Cet Arc Hub Fac Upp Upp War Pro Fac Res Tes Res Qua Acc Com Total 22893 | 7 878 347 223 197 676 267 1542 1381 616 2099 837 164 208 1680 503 376 1018 598 1089 584 2610 1338 498 884 2273 Wait 3019 | . 143 25 . . 113 66 136 102 93 412 226 53 37 212 29 61 279 3 372 57 151 12 39 106 292 Move 17778 | . 651 292 215 194 413 178 1222 1238 503 1508 564 88 166 1341 460 295 663 589 654 498 2198 1227 394 557 1670 Hop . | . . . . . . . . . . . . . . . . . . . . . . . . . . Pick Up 135 | . 15 3 2 1 9 1 . 7 1 7 . 1 . 6 2 . 4 . 6 3 17 10 7 16 17 Fast Attach 135 | . 3 . . . 13 1 2 2 1 . 6 . . 11 . . 9 . 9 1 25 14 6 10 22 Attach 113 | 2 1 . . . 4 8 2 1 2 1 . . . 6 . . 3 . 1 2 9 7 3 19 42 Detach 81 | 2 . . . . 2 5 2 1 . 1 1 . . 4 . . 5 . 3 1 11 7 1 6 29 Swap 248 | 1 5 4 2 1 14 . 3 4 2 8 1 4 1 22 3 8 16 3 12 1 38 23 3 30 39 Drop 237 | 2 7 5 4 1 22 8 5 6 1 5 6 2 . 11 3 . 12 . 7 3 35 35 8 17 32 Fire 915 | . 53 17 . . 86 . 79 20 13 76 33 16 4 53 6 11 17 3 25 12 116 3 33 114 125 Melee 6 | . . . . . . . . . . . . . . 3 . . . . . . . . 3 . . Ram 5 | . . . . . . . . . . . . . . 1 . . . . . . . . . . 4 Kick 12 | . . . . . . . . . . . . . . . . . . . . . 3 . . 9 . Crush 1 | . . 1 . . . . . . . . . . . . . . . . . . . . . . . Escape Stasis 134 | . . . . . . . 66 . . 51 . . . 10 . . . . . 6 . . 1 . . Rewire 64 | . . . . . . . 25 . . 30 . . . . . 1 . . . . 7 . . . 1 Trap . | . . . . . . . . . . . . . . . . . . . . . . . . . . Miscellaneous 10 | . . . . . . . . . . . . . . . . . 10 . . . . . . . . Route ------- -11/Scrapyard -10/Materials (discovered 5 exits: [*Mat x3] / *Min x2) -10/Mines (discovered 3 exits: [*Mat] / *Exi / [*Sub]) -10/Exiles -9/Mines -8/Materials (discovered 4 exits: *Fac x2 / *Sto x2) -7/Factory (discovered 5 exits: Fac x4 / Gar) -7/Garrison (discovered 3 exits: *Fac x3) -7/Factory (discovered 6 exits: *Fac x4 / *Low / Gar) -6/Factory -6/Extension (discovered 2 exits: *Fac / *Cet) -6/Cetus (discovered 2 exits: *Fac / *Arc) -6/Archives -6/Hub_04(d) -5/Factory (discovered 6 exits: *Fac x4 / *Upp x2) -5/Upper Caves -5/Upper Caves (discovered 2 exits: *Fac / *War) -5/Warlord -4/Proximity Caves -4/Factory (discovered 4 exits: *Res x4) -3/Research (discovered 3 exits: Arm / *Tes x2) -3/Testing -2/Research (discovered 4 exits: Acc x3 / *Qua) -2/Quarantine -1/Access -1/Command History --------- Turn | Location | Event 7 | -11/Scrapyard | Discovered new exit (range 0) 7 | -11/Scrapyard | Entered Materials 262 | -10/Materials | Discovered new exit (range 10) 317 | -10/Materials | Build established: Mutant 372 | -10/Materials | Discovered new exit (range 12) 372 | -10/Materials | Discovered new exit (range 13) 553 | -10/Materials | Identified exit to Mines 690 | -10/Materials | Repaired Lgt. Treads 718 | -10/Materials | Repaired Com. Wheel 746 | -10/Materials | Discovered new exit (range 13) 853 | -10/Materials | Central database locked down 915 | -10/Materials | Discovered new exit (range 5) 1070 | -10/Materials | Entered Mines 1071 | -10/Mines | Assembled infested the area 1103 | -10/Mines | Learned location of 1 exit from Materials 1113 | -10/Mines | Met a Derelict bent on vengeance 1344 | -10/Mines | Core integrity fell below 50% 1385 | -10/Mines | Discovered new exit (range 8) 1422 | -10/Mines | Discovered new exit (range 6) 1472 | -10/Mines | Discovered new exit (range 5) 1490 | -10/Mines | Entered Exiles 1490 | -10/Exiles | Accompanied by 2 allies 1517 | -10/Exiles | Met 8R-AWN 1520 | -10/Exiles | Led the pair of lost Derelicts to a safe place 1538 | -10/Exiles | Met EX-HEX 1571 | -10/Exiles | Met EX-BIN 1587 | -10/Exiles | Aligned with FarCom system 1588 | -10/Exiles | Given EX-Vault access code 1617 | -10/Exiles | Opened EX-Vault 1635 | -10/Exiles | Found Field Lobotomy Kit 1644 | -10/Exiles | Found XL Autogun Array 1691 | -10/Exiles | Warned to stay clear of 0b10 Research branches 1763 | -10/Exiles | Met EX-DEC 1775 | -10/Exiles | Learned location of Zion (-7) 1849 | -10/Exiles | Discovered new exit (range 10) 1868 | -10/Exiles | Stole two prototypes: XL Autogun Array, Field Lobotomy Kit 1868 | -10/Exiles | Entered Mines 2030 | -9/Mines | Found a damaged Exp. Sensor Array with a note attached 2034 | -9/Mines | Found Prototype Device 2095 | -9/Mines | Discovered new exit (range 9) 2107 | -9/Mines | Entered Materials 2107 | -8/Materials | Evolved 4 slots: Propulsion x2, Utility x1, Weapon x1 2108 | -8/Materials | Identified exit to Storage 2109 | -8/Materials | Identified exit to Factory 2575 | -8/Materials | Build established: Scavenger-Skirmisher 2592 | -8/Materials | Discovered exit to Storage (range 9) 2844 | -8/Materials | Identified Exp. Sensor Array 2910 | -8/Materials | Discovered exit to Factory (range 15) 3153 | -8/Materials | Entered Factory 3153 | -7/Factory | Evolved 2 slots: Propulsion x1, Weapon x1 3155 | -7/Factory | FarCom data flow suspended 3234 | -7/Factory | Identified exit to Factory 3263 | -7/Factory | Identified exit to Garrison 3297 | -7/Factory | Entered Garrison 3307 | -7/Garrison | Triggered checkpoint 3312 | -7/Garrison | Garrison Relay disabled 3404 | -7/Garrison | Destroyed 10 combat bots 3451 | -7/Garrison | Discovered new exit (range 10) 3469 | -7/Garrison | Attempted to access garrison exit controls, blocked by remote lockdown 3476 | -7/Garrison | Triggered checkpoint 3539 | -7/Garrison | Garrison Relay disabled 3573 | -7/Garrison | Build established: Gunner 3701 | -7/Garrison | Triggered checkpoint 3726 | -7/Garrison | Discovered new exit (range 13) 3733 | -7/Garrison | Triggered checkpoint 3864 | -7/Garrison | Garrison Relay disabled 3888 | -7/Garrison | Attempted to access garrison exit controls, blocked by remote lockdown 3913 | -7/Garrison | Triggered checkpoint 3987 | -7/Garrison | Discovered new exit (range 12) 3996 | -7/Garrison | Triggered checkpoint 4027 | -7/Garrison | Garrison Relay disabled 4032 | -7/Garrison | Entered Factory 4051 | -7/Factory | Discovered new exit (range 3) 4054 | -7/Factory | Identified exit to Lower Caves 4082 | -7/Factory | Allied Derelicts emerged from ambush trap array 4197 | -7/Factory | Identified exit to Garrison 4523 | -7/Factory | Repaired Broken Exp. Sensor Array 4594 | -7/Factory | Entered another Factory area 4594 | -6/Factory | Evolved 2 slots: Utility x2 4673 | -6/Factory | Repaired Aerolev Unit 4751 | -6/Factory | Discovered new exit (range 10) 4753 | -6/Factory | Identified exit to Extension 4879 | -6/Factory | Entered Extension 4895 | -6/Extension | Build established: Skirmisher 4999 | -6/Extension | Rescued a captive Derelict 5000 | -6/Extension | Rescued a captive Derelict 5135 | -6/Extension | Rescued A7 5532 | -6/Extension | Spotted B-75 Beast 5534 | -6/Extension | Destroyed B-75 Beast 5576 | -6/Extension | Spotted B-75 Beast 5582 | -6/Extension | Destroyed B-75 Beast 5604 | -6/Extension | Disrupted transfer network 5654 | -6/Extension | Rescued a captive Derelict 5830 | -6/Extension | Rescued a captive Derelict 5936 | -6/Extension | Discovered new exit (range 10) 5936 | -6/Extension | Discovered new exit (range 6) 5943 | -6/Extension | Identified exit to Cetus 5975 | -6/Extension | Entered Cetus 5975 | -6/Cetus | Accompanied by 10 allies (A7) 5980 | -6/Cetus | Acquired a Cetus Manufacturing Module code from A7 5982 | -6/Cetus | Spotted Cetus Guard 5986 | -6/Cetus | Destroyed Cetus Guard 5992 | -6/Cetus | Spotted Cetus Guard 5992 | -6/Cetus | Spotted Cetus Guard 5999 | -6/Cetus | Destroyed Cetus Guard 6007 | -6/Cetus | Spotted Cetus Guard 6007 | -6/Cetus | Destroyed Cetus Guard 6037 | -6/Cetus | Lost 4 allies 6104 | -6/Cetus | Escorted A7 to Cetus Mainframe 6107 | -6/Cetus | Started Cetus Manufacturing Module 6132 | -6/Cetus | Manufactured an Enhanced Grunt 6157 | -6/Cetus | Manufactured an Enhanced Grunt 6182 | -6/Cetus | Manufactured an Enhanced Grunt 6207 | -6/Cetus | Manufactured an Enhanced Grunt 6232 | -6/Cetus | Manufactured an Enhanced Grunt 6247 | -6/Cetus | Discovered new exit (range 15) 6272 | -6/Cetus | Build established: Commander-Gunner 6309 | -6/Cetus | Spotted Cetus Guard 6367 | -6/Cetus | Spotted Cetus Guard 6369 | -6/Cetus | Spotted Cetus Guard 6369 | -6/Cetus | Spotted Cetus Guard 6384 | -6/Cetus | Allies destroyed Cetus Guard 6386 | -6/Cetus | Allies destroyed Cetus Guard 6388 | -6/Cetus | Discovered new exit (range 15) 6390 | -6/Cetus | Met Revision 17 6405 | -6/Cetus | Identified exit to Archives 6443 | -6/Cetus | Entered Archives 6443 | -6/Archives | Accompanied by 10 allies (A7) 6448 | -6/Archives | Received a hacking code to weaken MAIN.C 6505 | -6/Archives | Discovered new exit (range 16) 6510 | -6/Archives | Identified exit to Hub_04(d) 6548 | -6/Archives | Entered Hub_04(d) 6548 | -6/Hub_04(d) | Accompanied by 9 allies 6551 | -6/Hub_04(d) | Discovered new exit (range 7) 6555 | -6/Hub_04(d) | Identified exit to Factory 6643 | -6/Hub_04(d) | Network Hub disabled 6645 | -6/Hub_04(d) | Spotted Lightning 6645 | -6/Hub_04(d) | Spotted Lightning 6645 | -6/Hub_04(d) | Spotted Lightning 6647 | -6/Hub_04(d) | Entered Factory 6647 | -5/Factory | Accompanied by 5 allies 6647 | -5/Factory | Evolved 2 slots: Propulsion x1, Utility x1 6666 | -5/Factory | Identified exit to Factory 6674 | -5/Factory | Lost 4 allies 6767 | -5/Factory | Repaired Aerolev Unit 6956 | -5/Factory | Build established: Commander-Scout 7024 | -5/Factory | Watched by a mysterious "MATRIX" hacker. 7209 | -5/Factory | Identified exit to Upper Caves 7241 | -5/Factory | Assimilated P-70 Sage with FLK Orb 7251 | -5/Factory | Assimilated H-71 Marshal with FLK Orb 7462 | -5/Factory | Entered Upper Caves 7471 | -5/Upper Caves | Met a Warlord Commander 7471 | -5/Upper Caves | Encountered a Warlord checkpoint 7472 | -5/Upper Caves | Learned location of Warlord (-5) 7473 | -5/Upper Caves | Warlord Commander delivered Encrypted Comm Array 7480 | -5/Upper Caves | Found Encrypted Comm Array 7678 | -5/Upper Caves | Build established: Scout 7678 | -5/Upper Caves | Discovered new exit (range 8) 7679 | -5/Upper Caves | Learned Factory emergency access door positions 7682 | -5/Upper Caves | Identified exit to Upper Caves 7683 | -5/Upper Caves | Entered another Upper Caves area 7687 | -5/Upper Caves | Discovered exit to Factory (range 8) 7841 | -5/Upper Caves | Learned Factory machine intel 7868 | -5/Upper Caves | Attracted the attention of an 0b10 checkpoint 7878 | -5/Upper Caves | Discovered new exit (range 14) 7881 | -5/Upper Caves | Encountered a Master Thief 7881 | -5/Upper Caves | Encountered a Master Thief 7881 | -5/Upper Caves | Encountered a Master Thief 7882 | -5/Upper Caves | Field Lobotomy Kit stolen by Master Thief 7886 | -5/Upper Caves | Centrium Medium Armor Plating stolen by Master Thief 7887 | -5/Upper Caves | Exp. Sensor Array stolen by Master Thief 7890 | -5/Upper Caves | Encountered a Master Thief 7890 | -5/Upper Caves | Gyrokinetic Inverter stolen by Master Thief 7891 | -5/Upper Caves | Identified exit to Warlord 7891 | -5/Upper Caves | Entered Warlord 8001 | -5/Warlord | Visited the Vortex Lab 8005 | -5/Warlord | Found Prototype Energy Gun 8005 | -5/Warlord | Identified Vortex Shotgun 8016 | -5/Warlord | Found Vortex Shotgun 8022 | -5/Warlord | Warlord's base attacked by MAIN.C 8091 | -5/Warlord | Found Prototype Processor 8091 | -5/Warlord | Identified Exp. Core Analyzer 8093 | -5/Warlord | Found Prototype Device 8093 | -5/Warlord | Identified Thermal Barrier 8097 | -5/Warlord | Found Prototype Device 8097 | -5/Warlord | Identified Exp. Phase Shifter 8122 | -5/Warlord | Found Prototype Reactor 8160 | -5/Warlord | Build established: Gunner 8160 | -5/Warlord | Met Warlord 8372 | -5/Warlord | Warlord forces counterattacked 8431 | -5/Warlord | Lost 4 allies 8433 | -5/Warlord | Spotted Executioner 8450 | -5/Warlord | Spotted Striker 8458 | -5/Warlord | Spotted Striker 8487 | -5/Warlord | Destroyed Striker 8532 | -5/Warlord | Discovered new exit (range 14) 8536 | -5/Warlord | Lost 19 allies 8537 | -5/Warlord | Entered Proximity Caves 8615 | -4/Proximity Caves | Build established: Scavenger-Gunner 8633 | -4/Proximity Caves | Spotted B-86 Titan 8640 | -4/Proximity Caves | Learned 4 Research zone layouts 8810 | -4/Proximity Caves | Discovered exit to Factory (range 3) 8811 | -4/Proximity Caves | Entered Factory 8811 | -4/Factory | Evolved 2 slots: Power x1, Propulsion x1 8813 | -4/Factory | Loaded intel: 273 machine locations 8813 | -4/Factory | Identified Vortex Chain Reactor 8876 | -4/Factory | Repaired Cmb. Gravmag System 9013 | -4/Factory | Repaired Broken Cld. Antigrav System 9270 | -4/Factory | Repaired Antigrav System 9379 | -4/Factory | Repaired Adv. Remote Shield 9492 | -4/Factory | Identified exit to Research 9504 | -4/Factory | Entered Research 9504 | -3/Research | Evolved 2 slots: Utility x2 9516 | -3/Research | Identified exit to Armory 9516 | -3/Research | Identified exit to Testing 9629 | -3/Research | Fabricated B-74 Champion? 9704 | -3/Research | Revision forces began assault on 0b10 9716 | -3/Research | Build established: Scavenger-Skirmisher 9717 | -3/Research | Met up with Revision 17++ 9800 | -3/Research | Entered Testing 9812 | -3/Testing | Rewired PD-63WTC4PUBY 9935 | -3/Testing | Found Prototype Hackware 9935 | -3/Testing | Identified Exp. System Shield 9992 | -3/Testing | Repaired Cld. Antigrav System 10135 | -3/Testing | Build established: Skirmisher 10280 | -3/Testing | Found Prototype Leg 10280 | -3/Testing | Identified Myomer Exoskeleton 10540 | -3/Testing | Found Prototype Device 10540 | -3/Testing | Identified Exp. Thermal Defense Suite 10743 | -3/Testing | Spotted Striker 10744 | -3/Testing | Spotted Striker 10931 | -3/Testing | System corruption reached 10% 11360 | -3/Testing | Build established: Scavenger-Tank 11403 | -3/Testing | Discovered new exit (range 6) 11411 | -3/Testing | Identified exit to Research 11801 | -3/Testing | Scanned by Researcher 12044 | -3/Testing | Found Prototype Energy Cannon 12163 | -3/Testing | Build established: Scavenger-Gunner 12258 | -3/Testing | Entered Research 12258 | -2/Research | Warlord forces began assault on 0b10 12258 | -2/Research | Evolved 2 slots: Utility x2 12283 | -2/Research | Distinguished unit "Vikings" dispatched to help 12336 | -2/Research | Identified exit to Access 12368 | -2/Research | Research machine network offline 12442 | -2/Research | Lost 3 allies 12558 | -2/Research | Build established: Scavenger-Skirmisher 12680 | -2/Research | Identified Imp. Potential Cannon 12748 | -2/Research | Met up with Warlord 12769 | -2/Research | Discovered new exit (range 11) 12851 | -2/Research | Found Unknown Protection 12851 | -2/Research | Identified Hvy. Reflective Plating 13245 | -2/Research | Found Quantum Capacitor 13559 | -2/Research | Build established: Scavenger-Gunner 13633 | -2/Research | Warlord invited to help at Command 13633 | -2/Research | Given Cave Seal Controls access code 13766 | -2/Research | Borebot progress halted 13769 | -2/Research | Identified exit to Quarantine 13770 | -2/Research | Entered Quarantine 13836 | -2/Quarantine | Found Alien Artifact 13954 | -2/Quarantine | Found Alien Artifact 14008 | -2/Quarantine | Repaired Exp. Cooling System 14098 | -2/Quarantine | Lost 3 allies 14108 | -2/Quarantine | Found Alien Artifact 14184 | -2/Quarantine | Identified Subatomic Replicator 14186 | -2/Quarantine | Used Subatomic Replicator to replicate Imp. Potential Cannon 14270 | -2/Quarantine | Cryocooling Duct disabled 14285 | -2/Quarantine | Ambient heat levels rising (+20) 14285 | -2/Quarantine | Non-combat units ordered to evacuate 14289 | -2/Quarantine | Cryocooling Duct disabled 14304 | -2/Quarantine | Ambient heat levels rising (+20) 14304 | -2/Quarantine | Combat units ordered to evacuate 14323 | -2/Quarantine | Discovered exit to Access (range 10) 14342 | -2/Quarantine | Entered Access 14342 | -1/Access | Evolved 2 slots: Utility x2 14395 | -1/Access | Build established: Gunner 14486 | -1/Access | Identified Phase Redirector 14678 | -1/Access | Garrison activated, responded to threat 14743 | -1/Access | Lost 3 parts (1n2u) 14791 | -1/Access | Build established: Scavenger-Gunner 14819 | -1/Access | Lost 3 parts (1n1u1w) 14835 | -1/Access | Destroyed 12 combat bots 14842 | -1/Access | First assault squad dispatched 14980 | -1/Access | Identified exit to Command 15455 | -1/Access | Entered Command 15597 | -1/Command | Phase Generator disabled 15692 | -1/Command | Disengaged cave seal 15693 | -1/Command | Welcomed Warlord to Command 15759 | -1/Command | Found Prototype Processor 15759 | -1/Command | Identified Exp. Melee Analysis Suite 15839 | -1/Command | Found Corrupted Quantum Capacitor 15848 | -1/Command | Lost 3 allies 15867 | -1/Command | Spotted B-99 Colossus 15898 | -1/Command | Destroyed B-99 Colossus 15922 | -1/Command | Found Prototype Ballistic Gun 15922 | -1/Command | Identified Multirail 15955 | -1/Command | First assault squad dispatched 16552 | -1/Command | System corruption reached 10% 16924 | -1/Command | Lost 3 parts (3u) 16960 | -1/Command | Found Hvy. Reactive Plating 16974 | -1/Command | Spotted B-99 Colossus 16981 | -1/Command | Destroyed B-99 Colossus 17406 | -1/Command | Disengaged cave seal 17406 | -1/Command | Derelicts emerged from the dark tunnel 17937 | -1/Command | Warlord commented on Warlord statues 17972 | -1/Command | Lost 6 allies 17979 | -1/Command | Spotted Combat Programmer 17979 | -1/Command | Spotted M Guard 17980 | -1/Command | Warlord destroyed during the assault 18002 | -1/Command | Destroyed Combat Programmer 18018 | -1/Command | Spotted M Guard 18048 | -1/Command | Core integrity fell below 50% 18052 | -1/Command | Destroyed M Guard 18052 | -1/Command | All MAIN.C guards destroyed 18086 | -1/Command | Lost 6 parts (2p3u1w) 18120 | -1/Command | Identified Core Reset Matrix 18120 | -1/Command | Used Core Reset Matrix 18182 | -1/Command | Met MAIN.C 18253 | -1/Command | Destroyed MAIN.C Shell 18254 | -1/Command | MAIN.C activated Command garrisons 18277 | -1/Command | Emitted hypermatrix ping 18282 | -1/Command | Assembled emerged from beneath the floor 18289 | -1/Command | Core integrity fell below 20% 18307 | -1/Command | 0b10 Conduit disabled 18311 | -1/Command | Lost 18 parts (1p7n4u6w) 18320 | -1/Command | Destroyed by MAIN.C with Improved Heavy Machine Gun Last Messages --------------- 18284_ as-37439 destroyed. 18286_ MAIN.C suffers critical hit (Burn). 18291_ as-95475 knocked back. 18292_ Acquired 77 matter. 18292_ as-95475 destroyed. 18302_ Interfacing with system... 18302_ Unable to override active MAIN.C lock without RIF. 18302_ Interfacing with system... 18302_ Unable to override active MAIN.C lock without RIF. 18307_ System corrupted: Energy discharge (-40). 18317_ Slammed into MAIN.C. 18319_ Destabilizing: System interference. 18319_ Armor Integrity Analyzer temporarily disabled. 18319_ Adv. Heat Sink temporarily disabled. 18319_ Exp. Core Analyzer temporarily disabled. 18320_ Slammed into MAIN.C. 18320_ Destabilizing: Core damaged (-48). Map ----- +----------------------------------------------------+ | ?????????????????????????????????????????????????? | | ?????????????????????????????????????????????????? | | ?????????????????????????????????????????????????? | | ?????????????????????????????????????????????????? | | ?????????????????????????????????????????????????? | | ?????????????????????????????????????????????????? | | ?????????????????????????????????????????????????? | | ???????????????????????????????##############????? | | ??????????????????????????????? """" #????? | | ??????????????????????????????? "" #????? | | ?????????????????????????????? "" ###### | | ???????????????????????"""???""""" + | | ???????????????????????? ?? """ " | | ???????????????????????"" """""" " | | ???????????????????????"" """""" ###### | | ??????????????????????# " """""" #????? | | ??????????????????????# " "" #????? | | ??????????????????????# " " ""#????? | | ??????????????????????#""""""""" """""""#????? | | ??????????????????????#"" """"""""#????? | | ??????????????????????# """""""""""#????? | | ??????????????????????# " " " " #????? | | ??????????????????????# " " " " #????? | | ??????????????????????" " " " """" " #????? | | ??????????????????????" M p""" " " """" #????? | | ??????????????????????" @ " " " "????????? | | ??????????????????????# % """"""""" "????????? | | ??????????????????????# % % "" " """""????????? | | ??????????????????????# % """ " " ???????????? | | ??????????????????????###############????????????? | | ?????????????????????????????????????????????????? | | ?????????????????????????????????????????????????? | | ?????????????????????????????????????????????????? | | ?????????????????????????????????????????????????? | | ?????????????????????????????????????????????????? | | ?????????????????????????????????????????????????? | | ?????????????????????????????????????????????????? | | ?????????????????????????????????????????????????? | | ?????????????????????????????????????????????????? | | ?????????????????????????????????????????????????? | | ?????????????????????????????????????????????????? | | ?????????????????????????????????????????????????? | | ?????????????????????????????????????????????????? | | ?????????????????????????????????????????????????? | | ?????????????????????????????????????????????????? | | ?????????????????????????????????????????????????? | | ?????????????????????????????????????????????????? | | ?????????????????????????????????????????????????? | | ?????????????????????????????????????????????????? | | ?????????????????????????????????????????????????? | +----------------------------------------------------+ Best States ------------- Heat Dissipation 121 Energy Generation 72 Energy Capacity 1350 Matter Stores 300 Matter Capacity 300 Sight Range 16 Robot Scan Range 20 Terrain Scan Density 10 Jamming Range 16 Power Amplification 40 Base Temperature (-) 200 Armor Coverage 825 Resistance: KI 40 Weapon Shielding 66 Point Defense Rating 480 Weapon Cycling 25 Evasion (%) 70 Targeting Accuracy 24 Melee Accuracy 12 Core Analysis 8 Armor Integrity Analysis 30 Recoil Reduction 6 Kinecelleration 40 Offensive Hacking 12 Item Schematics ----------------- None Robot Schematics ------------------ None Fabricated ------------ B-74 Champion | x3 | -3/Research | Preloaded Repaired ---------- Lgt. Treads | 13% | -10/Materials Com. Wheel | 6% | -10/Materials Exp. Sensor Array | 62% | -7/Factory | Broken Aerolev Unit | 66% | -6/Factory Aerolev Unit | 43% | -5/Factory Cmb. Gravmag System | 44% | -4/Factory Cld. Antigrav System | 34% | -4/Factory | Broken Antigrav System | 27% | -4/Factory Adv. Remote Shield | 57% | -4/Factory Cld. Antigrav System | 57% | -3/Testing Exp. Cooling System | 34% | -2/Quarantine Studied --------- None Alien Tech Used ----------------- Subatomic Replicator Phase Redirector Core Reset Matrix Achievements -------------- Consequences Max Potential Morally Flexible Challenges ------------ None Game ------ Seed GravitySeismicCycler Manual? 0 Play Time 05:49:52 Cumulative 176.4 hours Start 2026.04.18 @ 17:31:19 End 2026.04.19 @ 00:34:41 Sessions 3 Manual Loads 0 Difficulty Rogue Special Mode None Game No. 109 Rogue 109 Adventurer 0 Explorer 0 Win Type - Total 5 Types 3/0/1/1/0/0/0/0/0/0 Lore% 63 Gallery% 55 Achievement% 49 Wizard Run 0 Options --------- Layout 2 ASCII 0 Keyboard 1 Movement Arrows Keybinds 0 Fullscreen 2 Font 24/Terminus Map View 50x44 Zoom Use 0% Tactical HUD 1 Map Filters NONE Filters NONE Steam 1 RUN: 2994f7a3-4af4-4059-b931-1cc6601dcbf5